fUST/lending_fUST_20240424
["ID","MTS","AMOUNT","RATE_DAILY","PERIOD"]
[323414706,1713973854450,-500.0,0.00016986,2]
[323414708,1713973854460,-1985.19,0.00016986,2]
[323414710,1713973854469,-500.0,0.00016986,2]
[323414712,1713973854478,-641.44,0.00016986,2]
[323414714,1713973854488,-2116.28,0.00016986,2]
[323414716,1713973854497,-516.29,0.00016986,2]
[323414718,1713973854506,-21869.9,0.00016986,2]
[323414720,1713973854515,-1052.56,0.00016986,2]
[323414722,1713973854524,-500.0,0.00016986,2]
[323414724,1713973854535,-500.0,0.00016986,2]
[323414726,1713973854544,-500.0,0.00016986,2]
[323414728,1713973854554,-1414.49,0.00016986,2]
[323414730,1713973854563,-624.27,0.00016986,2]
[323414732,1713973854572,-500.0,0.00016986,2]
[323414734,1713973854581,-962.52,0.00016986,2]
[323414736,1713973854591,-318.72066129,0.00016986,2]
[323414738,1713973854600,-500.0,0.00016986,2]
[323414740,1713973854609,-500.0,0.00016986,2]
[323414742,1713973854618,-7037.05,0.00016986,2]
[323414744,1713973854627,-500.0,0.00016986,2]
[323414746,1713973854638,-922.08,0.00016986,2]
[323414748,1713973854647,-10281.24,0.00016986,2]
[323414750,1713973854655,-500.0,0.00016986,2]
[323414751,1713973854664,-587.01,0.00016986,2]
[323414753,1713973854673,-2381.69,0.00016986,2]
[323414755,1713973854683,-1630.87,0.00016986,2]
[323414757,1713973854693,-500.0,0.00016986,2]
[323414760,1713973854702,-150.0,0.00017019,2]
[323414762,1713973854712,-150.0,0.0001703,2]
[323414763,1713973854720,-417.0,0.00017098,2]
[323414765,1713973854729,-150.0,0.00017098,2]
[323414767,1713973854738,-334.685207,0.00017144,2]
[323414769,1713973854747,-2788.962873,0.00017144,2]
[323414771,1713973854756,-1859.308583,0.00017144,2]
[323414773,1713973854765,-3848.879882,0.00017144,2]
[323414775,1713973854774,-66819.87143922,0.00017259,2]
[323414777,1713973854783,-1345.39,0.0001726,2]
[323414778,1713973854792,-293.87697452,0.0001726,2]
[323414780,1713973854801,-500.0,0.0001726,2]
[323414782,1713973854811,-386.12656123,0.0001726,2]
[323414784,1713973854819,-500.0,0.0001726,2]
[323414786,1713973854828,-500.0,0.0001726,2]
[323414788,1713973854837,-500.0,0.0001726,2]
[323414790,1713973854846,-276.67371471,0.0001726,2]
[323414792,1713973854855,-500.0,0.0001726,2]
[323414794,1713973854864,-1024.92,0.0001726,2]
[323414796,1713973854873,-654.09,0.0001726,2]
[323414798,1713973854886,-500.0,0.0001726,2]
[323414800,1713973854895,-500.0,0.0001726,2]
[323414802,1713973854904,-637.62,0.0001726,2]
[323414804,1713973854913,-500.0,0.0001726,2]
[323414806,1713973854922,-541.66,0.0001726,2]
[323414808,1713973854932,-500.0,0.0001726,2]
[323414810,1713973854941,-500.0,0.0001726,2]
[323414812,1713973854950,-500.0,0.0001726,2]
[323414814,1713973854960,-500.0,0.0001726,2]
[323414816,1713973854969,-500.0,0.0001726,2]
[323414818,1713973854978,-500.0,0.0001726,2]
[323414820,1713973854988,-500.0,0.0001726,2]
[323414822,1713973854997,-500.0,0.0001726,2]
[323414823,1713973855006,-500.0,0.0001726,2]
[323414825,1713973855016,-637.46,0.0001726,2]
[323414827,1713973855024,-500.0,0.0001726,2]
[323414829,1713973855033,-1841.01,0.0001726,2]
[323414831,1713973855042,-877.6,0.0001726,2]
[323414833,1713973855051,-500.0,0.0001726,2]
[323414835,1713973855060,-500.0,0.0001726,2]
[323414837,1713973855069,-783.92,0.0001726,2]
[323414839,1713973855079,-500.0,0.0001726,2]
[323414841,1713973855092,-500.0,0.0001726,2]
[323414843,1713973855101,-639.1,0.0001726,2]
[323414845,1713973855110,-500.0,0.0001726,2]
[323414847,1713973855119,-786.08,0.0001726,2]
[323414849,1713973855128,-500.0,0.0001726,2]
[323414850,1713973855140,-500.0,0.0001726,2]
[323414852,1713973855150,-500.0,0.0001726,2]
[323414854,1713973855159,-500.0,0.0001726,2]
[323414856,1713973855169,-358.03159687,0.0001726,2]
[323414858,1713973855179,-500.0,0.0001726,2]
[323414860,1713973855188,-1310.72,0.0001726,2]
[323414862,1713973855197,-776.68,0.0001726,2]
[323414864,1713973855206,-3073.94,0.0001726,2]
[323414866,1713973855215,-305.64776956,0.0001726,2]
[323414868,1713973855224,-500.0,0.0001726,2]
[323414870,1713973855233,-500.0,0.0001726,2]
[323414872,1713973855242,-500.0,0.0001726,2]
[323414874,1713973855251,-500.0,0.0001726,2]
[323414876,1713973855260,-500.0,0.0001726,2]
[323414877,1713973855269,-500.0,0.0001726,2]
[323414879,1713973855278,-1655.34,0.0001726,2]
[323414881,1713973855288,-500.0,0.0001726,2]
[323414883,1713973855297,-939.9,0.0001726,2]
[323414885,1713973855306,-4954.95,0.0001726,2]
[323414887,1713973855316,-500.0,0.0001726,2]
[323414889,1713973855325,-500.0,0.0001726,2]
[323414891,1713973855334,-2682.8,0.0001726,2]
[323414893,1713973855343,-1209.51,0.0001726,2]
[323414895,1713973855352,-818.79,0.0001726,2]
[323414896,1713973855361,-500.0,0.0001726,2]
[323414898,1713973855370,-500.0,0.0001726,2]
[323414900,1713973855383,-500.0,0.0001726,2]
[323414902,1713973855391,-500.0,0.0001726,2]
[323414904,1713973855401,-1113.86,0.0001726,2]
[323414906,1713973855412,-627.1,0.0001726,2]
[323414908,1713973855421,-550.62,0.0001726,2]
[323414910,1713973855431,-500.0,0.0001726,2]
[323414912,1713973855440,-500.0,0.0001726,2]
[323414914,1713973855449,-504.59640057,0.0001726,2]
[323414916,1713973855458,-500.0,0.0001726,2]
[323414918,1713973855468,-1098.08,0.0001726,2]
[323414920,1713973855477,-882.83,0.0001726,2]
[323414922,1713973855486,-500.0,0.0001726,2]
[323414923,1713973855495,-745.36,0.0001726,2]
[323414925,1713973855506,-500.98063444,0.0001726,2]
[323414927,1713973855516,-237.75993891,0.0001726,2]
[323414929,1713973855525,-500.0,0.0001726,2]
[323414931,1713973855534,-666.75,0.0001726,2]
[323414933,1713973855543,-500.0,0.0001726,2]
[323414935,1713973855553,-878.02,0.0001726,2]
[323414937,1713973855562,-2175.21,0.0001726,2]
[323414939,1713973855571,-500.0,0.0001726,2]
[323414941,1713973855580,-500.0,0.0001726,2]
[323414943,1713973855590,-500.0,0.0001726,2]
[323414945,1713973855600,-500.0,0.0001726,2]
[323414947,1713973855609,-744.14,0.0001726,2]
[323414949,1713973855618,-500.0,0.0001726,2]
[323414951,1713973855627,-500.0,0.0001726,2]
[323414953,1713973855640,-500.0,0.0001726,2]
[323414955,1713973855649,-500.0,0.0001726,2]
[323414957,1713973855658,-500.0,0.0001726,2]
[323414959,1713973855668,-500.0,0.0001726,2]
[323414961,1713973855677,-1963.58,0.0001726,2]
[323414963,1713973855687,-507.49465196,0.0001726,2]
[323414964,1713973855696,-500.0,0.0001726,2]
[323414966,1713973855706,-500.0,0.0001726,2]
[323414968,1713973855715,-952.39,0.0001726,2]
[323414971,1713973855725,-500.0,0.0001726,2]
[323414972,1713973855735,-500.0,0.0001726,2]
[323414974,1713973855744,-500.0,0.0001726,2]
[323414976,1713973855753,-160.38501174,0.0001726,2]
[323414978,1713973855762,-1744.46,0.0001726,2]
[323414980,1713973855771,-883.68,0.0001726,2]
[323414982,1713973855781,-1642.42,0.0001726,2]
[323414984,1713973855790,-613.48,0.0001726,2]
[323414986,1713973855799,-196.08637045,0.0001726,2]
[323414988,1713973855808,-2192.71,0.0001726,2]
[323414990,1713973855817,-500.0,0.0001726,2]
[323414991,1713973855826,-500.0,0.0001726,2]
[323414993,1713973855836,-500.0,0.0001726,2]
[323414995,1713973855845,-500.0,0.0001726,2]
[323414997,1713973855854,-500.0,0.0001726,2]
[323414999,1713973855863,-628.76,0.0001726,2]
[323415001,1713973855872,-500.0,0.0001726,2]
[323415003,1713973855883,-500.0,0.0001726,2]
[323415005,1713973855892,-611.79,0.0001726,2]
[323415007,1713973855901,-500.0,0.0001726,2]
[323415009,1713973855910,-500.0,0.0001726,2]
[323415011,1713973855920,-500.0,0.0001726,2]
[323415013,1713973855929,-587.8,0.0001726,2]
[323415015,1713973855938,-495.34833895,0.0001726,2]
[323415017,1713973855948,-500.0,0.0001726,2]
[323415019,1713973855958,-500.0,0.0001726,2]
[323415021,1713973855967,-500.0,0.0001726,2]
[323415022,1713973855976,-500.0,0.0001726,2]
[323415024,1713973855985,-500.0,0.0001726,2]
[323415026,1713973855994,-500.0,0.0001726,2]
[323415028,1713973856003,-598.88512567,0.0001726,2]
[323415030,1713973856012,-500.0,0.0001726,2]
[323415032,1713973856021,-998.74,0.0001726,2]
[323415034,1713973856030,-500.0,0.0001726,2]
[323415036,1713973856039,-984.64,0.0001726,2]
[323415038,1713973856048,-500.0,0.0001726,2]
[323415040,1713973856058,-500.0,0.0001726,2]
[323415042,1713973856067,-500.0,0.0001726,2]
[323415044,1713973856077,-500.0,0.0001726,2]
[323415046,1713973856089,-500.0,0.0001726,2]
[323415048,1713973856098,-500.0,0.0001726,2]
[323415050,1713973856107,-500.0,0.0001726,2]
[323415052,1713973856116,-500.0,0.0001726,2]
[323415054,1713973856128,-1093.45,0.0001726,2]
[323415055,1713973856139,-500.0,0.0001726,2]
[323415057,1713973856148,-500.0,0.0001726,2]
[323415059,1713973856158,-705.78,0.0001726,2]
[323415061,1713973856168,-2397.32,0.0001726,2]
[323415063,1713973856177,-500.0,0.0001726,2]
[323415065,1713973856187,-1960.03,0.0001726,2]
[323415067,1713973856197,-500.0,0.0001726,2]
[323415069,1713973856206,-500.0,0.0001726,2]
[323415071,1713973856215,-501.48172773,0.0001726,2]
[323415073,1713973856225,-10747.6,0.0001726,2]
[323415075,1713973856235,-822.61,0.0001726,2]
[323415077,1713973856244,-398.88697047,0.0001726,2]
[323415079,1713973856254,-1001.97,0.0001726,2]
[323415081,1713973856263,-500.0,0.0001726,2]
[323415083,1713973856273,-500.0,0.0001726,2]
[323415085,1713973856282,-500.0,0.0001726,2]
[323415087,1713973856291,-1272.98,0.0001726,2]
[323415089,1713973856301,-500.0,0.0001726,2]
[323415091,1713973856310,-1047.3,0.0001726,2]
[323415093,1713973856319,-938.72,0.0001726,2]
[323415095,1713973856329,-1002.06,0.0001726,2]
[323415097,1713973856338,-500.0,0.0001726,2]
[323415099,1713973856347,-500.0,0.0001726,2]
[323415101,1713973856356,-7332.05,0.0001726,2]
[323415103,1713973856365,-615.69,0.0001726,2]
[323415105,1713973856375,-19476.72,0.0001726,2]
[323415107,1713973856384,-500.0,0.0001726,2]
[323415109,1713973856393,-224.36484176,0.0001726,2]
[323415111,1713973856403,-500.0,0.0001726,2]
[323415113,1713973856414,-1096.43,0.0001726,2]
[323415115,1713973856423,-500.0,0.0001726,2]
[323415129,1713973856548,-500.0,0.0001726,2]
[323415131,1713973856561,-629.51,0.0001726,2]
[323415133,1713973856570,-500.0,0.0001726,2]
[323415135,1713973856580,-500.0,0.0001726,2]
[323415137,1713973856589,-500.0,0.0001726,2]
[323415139,1713973856599,-15898.31,0.0001726,2]
[323415141,1713973856608,-545.29,0.0001726,2]
[323415143,1713973856617,-503.27683505,0.0001726,2]
[323415145,1713973856627,-500.0,0.0001726,2]
[323415147,1713973856637,-500.0,0.0001726,2]
[323415149,1713973856646,-1298.62,0.0001726,2]
[323415151,1713973856655,-602.15,0.0001726,2]
[323415153,1713973856664,-500.0,0.0001726,2]
[323415155,1713973856673,-500.0,0.0001726,2]
[323415157,1713973856683,-1307.55,0.0001726,2]
[323415159,1713973856692,-1533.51,0.0001726,2]
[323415161,1713973856700,-1480.74,0.0001726,2]
[323415163,1713973856710,-1355.25,0.0001726,2]
[323415165,1713973856719,-641.71,0.0001726,2]
[323415167,1713973856728,-2155.08,0.0001726,2]
[323415169,1713973856737,-500.0,0.0001726,2]
[323415171,1713973856746,-1175.27,0.0001726,2]
[323415173,1713973856756,-500.0,0.0001726,2]
[323415175,1713973856765,-1675.37,0.0001726,2]
[323415177,1713973856774,-500.0,0.0001726,2]
[323415178,1713973856783,-500.0,0.0001726,2]
[323415179,1713973856793,-500.0,0.0001726,2]
[323415180,1713973856802,-500.0,0.0001726,2]
[323415181,1713973856811,-500.0,0.0001726,2]
[323415182,1713973856821,-500.0,0.0001726,2]
[323415183,1713973856830,-1788.24,0.0001726,2]
[323415184,1713973856839,-1123.22,0.0001726,2]
[323415185,1713973856848,-2426.9,0.0001726,2]
[323415186,1713973856857,-500.0,0.0001726,2]
[323415187,1713973856866,-500.0,0.0001726,2]
[323415189,1713973856875,-7241.22,0.0001726,2]
[323415191,1713973856886,-756.6,0.0001726,2]
[323415193,1713973856895,-500.0,0.0001726,2]
[323415195,1713973856904,-529.0,0.0001726,2]
[323415197,1713973856913,-971.73,0.0001726,2]
[323415199,1713973856921,-720.48,0.0001726,2]
[323415201,1713973856930,-749.1,0.0001726,2]
[323415203,1713973856940,-500.0,0.0001726,2]
[323415205,1713973856949,-3467.77,0.0001726,2]
[323415207,1713973856959,-1047.76,0.0001726,2]
[323415209,1713973856969,-691.77,0.0001726,2]
[323415211,1713973856978,-500.0,0.0001726,2]
[323415213,1713973856987,-500.0,0.0001726,2]
[323415215,1713973856997,-5159.31,0.0001726,2]
[323415217,1713973857006,-611.69,0.0001726,2]
[323415219,1713973857015,-783.87,0.0001726,2]
[323415221,1713973857025,-3678.5,0.0001726,2]
[323415223,1713973857036,-500.0,0.0001726,2]
[323415225,1713973857045,-1985.19,0.0001726,2]
[323415227,1713973857054,-500.0,0.0001726,2]
[323415229,1713973857064,-641.44,0.0001726,2]
[323415231,1713973857073,-2116.28,0.0001726,2]
[323415233,1713973857083,-516.29,0.0001726,2]
[323415235,1713973857095,-21869.9,0.0001726,2]
[323415237,1713973857104,-1052.56,0.0001726,2]
[323415239,1713973857114,-500.0,0.0001726,2]
[323415241,1713973857124,-500.0,0.0001726,2]
[323415243,1713973857134,-500.0,0.0001726,2]
[323415245,1713973857143,-1414.49,0.0001726,2]
[323415247,1713973857152,-624.27,0.0001726,2]
[323415249,1713973857162,-500.0,0.0001726,2]
[323415251,1713973857172,-962.52,0.0001726,2]
[323415253,1713973857182,-395.34378577,0.0001726,2]
[323415255,1713973857191,-500.0,0.0001726,2]
[323415257,1713973857200,-7037.05,0.0001726,2]
[323415259,1713973857209,-500.0,0.0001726,2]
[323415261,1713973857218,-922.08,0.0001726,2]
[323415263,1713973857227,-10281.24,0.0001726,2]
[323415265,1713973857237,-587.01,0.0001726,2]
[323415267,1713973857246,-2381.69,0.0001726,2]
[323415269,1713973857255,-1630.87,0.0001726,2]
[323415271,1713973857264,-500.0,0.0001726,2]
[323415273,1713973857273,-334.685207,0.0001735,2]
[323415275,1713973857282,-2788.962873,0.0001735,2]
[323415277,1713973857291,-1859.308583,0.0001735,2]
[323415279,1713973857300,-3848.879882,0.0001735,2]
[323415281,1713973857310,-167.280027,0.0001735,2]
[323415283,1713973857319,-1345.39,0.00017534,2]
[323415285,1713973857328,-500.0,0.00017534,2]
[323415287,1713973857337,-500.0,0.00017534,2]
[323415289,1713973857347,-500.0,0.00017534,2]
[323415291,1713973857356,-500.0,0.00017534,2]
[323415293,1713973857365,-500.0,0.00017534,2]
[323415295,1713973857374,-1024.92,0.00017534,2]
[323415297,1713973857384,-654.09,0.00017534,2]
[323415298,1713973857393,-500.0,0.00017534,2]
[323415300,1713973857402,-500.0,0.00017534,2]
[323415302,1713973857411,-637.62,0.00017534,2]
[323415304,1713973857420,-500.0,0.00017534,2]
[323415306,1713973857431,-541.66,0.00017534,2]
[323415308,1713973857440,-500.0,0.00017534,2]
[323415310,1713973857449,-500.0,0.00017534,2]
[323415312,1713973857458,-334.67040565,0.00017534,2]
[323415314,1713973857467,-500.0,0.00017534,2]
[323415316,1713973857476,-500.0,0.00017534,2]
[323415317,1713973857485,-500.0,0.00017534,2]
[323415319,1713973857494,-500.0,0.00017534,2]
[323415321,1713973857503,-500.0,0.00017534,2]
[323415323,1713973857513,-500.0,0.00017534,2]
[323415325,1713973857522,-637.46,0.00017534,2]
[323415328,1713973857539,-585.27480637,0.00017534,2]
[323415330,1713973857547,-877.6,0.00017534,2]
[323415332,1713973857557,-1841.01,0.00017534,2]
[323415334,1713973857566,-500.0,0.00017534,2]
[323415336,1713973857575,-500.0,0.00017534,2]
[323415338,1713973857584,-783.92,0.00017534,2]
[323415340,1713973857593,-500.0,0.00017534,2]
[323415342,1713973857602,-500.0,0.00017534,2]
[323415344,1713973857611,-639.1,0.00017534,2]
[323415346,1713973857621,-500.0,0.00017534,2]
[323415348,1713973857630,-786.08,0.00017534,2]
[323415350,1713973857640,-500.0,0.00017534,2]
[323415352,1713973857649,-500.0,0.00017534,2]
[323415354,1713973857659,-500.0,0.00017534,2]
[323415356,1713973857668,-500.0,0.00017534,2]
[323415358,1713973857677,-500.0,0.00017534,2]
[323415360,1713973857688,-1310.72,0.00017534,2]
[323415362,1713973857696,-776.68,0.00017534,2]
[323415364,1713973857706,-3073.94,0.00017534,2]
[323415366,1713973857716,-500.0,0.00017534,2]
[323415368,1713973857724,-500.0,0.00017534,2]
[323415369,1713973857733,-500.0,0.00017534,2]
[323415371,1713973857744,-500.0,0.00017534,2]
[323415373,1713973857753,-500.0,0.00017534,2]
[323415375,1713973857762,-500.0,0.00017534,2]
[323415377,1713973857771,-1655.34,0.00017534,2]
[323415379,1713973857781,-939.9,0.00017534,2]
[323415381,1713973857790,-500.0,0.00017534,2]
[323415383,1713973857799,-4954.95,0.00017534,2]
[323415385,1713973857808,-500.0,0.00017534,2]
[323415387,1713973857817,-500.0,0.00017534,2]
[323415389,1713973857826,-2682.8,0.00017534,2]
[323415391,1713973857836,-1209.51,0.00017534,2]
[323415393,1713973857846,-818.79,0.00017534,2]
[323415395,1713973857855,-576.55008624,0.00017534,2]
[323415397,1713973857864,-500.0,0.00017534,2]
[323415399,1713973857873,-503.21389459,0.00017534,2]
[323415401,1713973857884,-1113.86,0.00017534,2]
[323415404,1713973857897,-500.0,0.00017534,2]
[323415406,1713973857907,-627.1,0.00017534,2]
[323415407,1713973857917,-550.62,0.00017534,2]
[323415409,1713973857927,-500.0,0.00017534,2]
[323415411,1713973857938,-420.85507138,0.00017534,2]
[323415413,1713973857947,-500.0,0.00017534,2]
[323415415,1713973857957,-1098.08,0.00017534,2]
[323415417,1713973857967,-882.83,0.00017534,2]
[323415419,1713973857975,-500.0,0.00017534,2]
[323415421,1713973857985,-745.36,0.00017534,2]
[323415423,1713973857994,-500.0,0.00017534,2]
[323415425,1713973858003,-666.75,0.00017534,2]
[323415427,1713973858012,-296.64409495,0.00017534,2]
[323415429,1713973858022,-878.02,0.00017534,2]
[323415431,1713973858030,-2175.21,0.00017534,2]
[323415433,1713973858040,-500.0,0.00017534,2]
[323415435,1713973858049,-500.0,0.00017534,2]
[323415437,1713973858058,-500.0,0.00017534,2]
[323415439,1713973858067,-500.0,0.00017534,2]
[323415441,1713973858077,-744.14,0.00017534,2]
[323415443,1713973858090,-500.0,0.00017534,2]
[323415445,1713973858100,-500.0,0.00017534,2]
[323415447,1713973858109,-500.0,0.00017534,2]
[323415449,1713973858118,-500.0,0.00017534,2]
[323415451,1713973858128,-500.0,0.00017534,2]
[323415453,1713973858138,-500.0,0.00017534,2]
[323415455,1713973858148,-1963.58,0.00017534,2]
[323415458,1713973858158,-500.0,0.00017534,2]
[323415459,1713973858169,-500.0,0.00017534,2]
[323415461,1713973858178,-952.39,0.00017534,2]
[323415463,1713973858187,-500.0,0.00017534,2]
[323415466,1713973858197,-500.0,0.00017534,2]
[323415468,1713973858206,-500.0,0.00017534,2]
[323415470,1713973858215,-1744.46,0.00017534,2]
[323415471,1713973858225,-883.68,0.00017534,2]
[323415473,1713973858234,-1642.42,0.00017534,2]
[323415476,1713973858244,-613.48,0.00017534,2]
[323415478,1713973858253,-2192.71,0.00017534,2]
[323415479,1713973858263,-501.10083036,0.00017534,2]
[323415481,1713973858272,-500.0,0.00017534,2]
[323415483,1713973858282,-500.0,0.00017534,2]
[323415485,1713973858292,-500.0,0.00017534,2]
[323415487,1713973858302,-500.0,0.00017534,2]
[323415489,1713973858311,-628.76,0.00017534,2]
[323415491,1713973858320,-500.0,0.00017534,2]
[323415493,1713973858329,-500.0,0.00017534,2]
[323415495,1713973858339,-611.79,0.00017534,2]
[323415497,1713973858349,-500.0,0.00017534,2]
[323415499,1713973858358,-500.0,0.00017534,2]
[323415501,1713973858367,-500.0,0.00017534,2]
[323415503,1713973858375,-587.8,0.00017534,2]
[323415505,1713973858385,-500.0,0.00017534,2]
[323415507,1713973858394,-500.0,0.00017534,2]
[323415509,1713973858403,-500.0,0.00017534,2]
[323415511,1713973858415,-500.0,0.00017534,2]
[323415513,1713973858424,-500.0,0.00017534,2]
[323415515,1713973858434,-500.0,0.00017534,2]
[323415516,1713973858443,-500.0,0.00017534,2]
[323415518,1713973858453,-998.74,0.00017534,2]
[323415520,1713973858462,-500.0,0.00017534,2]
[323415522,1713973858471,-984.64,0.00017534,2]
[323415525,1713973858480,-500.0,0.00017534,2]
[323415527,1713973858489,-500.0,0.00017534,2]
[323415528,1713973858499,-500.0,0.00017534,2]
[323415531,1713973858509,-500.0,0.00017534,2]
[323415533,1713973858518,-500.0,0.00017534,2]
[323415534,1713973858527,-500.0,0.00017534,2]
[323415536,1713973858536,-500.0,0.00017534,2]
[323415538,1713973858545,-500.0,0.00017534,2]
[323415540,1713973858555,-1093.45,0.00017534,2]
[323415542,1713973858564,-500.0,0.00017534,2]
[323415544,1713973858573,-500.0,0.00017534,2]
[323415546,1713973858582,-705.78,0.00017534,2]
[323415548,1713973858592,-2397.32,0.00017534,2]
[323415550,1713973858601,-500.0,0.00017534,2]
[323415552,1713973858610,-1960.03,0.00017534,2]
[323415554,1713973858619,-500.0,0.00017534,2]
[323415556,1713973858629,-500.0,0.00017534,2]
[323415558,1713973858640,-10747.6,0.00017534,2]
[323415561,1713973858649,-822.61,0.00017534,2]
[323415563,1713973858659,-1001.97,0.00017534,2]
[323415564,1713973858668,-500.0,0.00017534,2]
[323415566,1713973858677,-500.0,0.00017534,2]
[323415568,1713973858687,-500.0,0.00017534,2]
[323415570,1713973858696,-1272.98,0.00017534,2]
[323415572,1713973858705,-500.0,0.00017534,2]
[323415574,1713973858714,-1047.3,0.00017534,2]
[323415576,1713973858723,-938.72,0.00017534,2]
[323415578,1713973858732,-1002.06,0.00017534,2]
[323415580,1713973858741,-500.0,0.00017534,2]
[323415583,1713973858751,-500.0,0.00017534,2]
[323415584,1713973858761,-7332.05,0.00017534,2]
[323415586,1713973858771,-615.69,0.00017534,2]
[323415588,1713973858780,-19476.72,0.00017534,2]
[323415591,1713973858789,-500.0,0.00017534,2]
[323415592,1713973858798,-500.0,0.00017534,2]
[323415594,1713973858807,-1096.43,0.00017534,2]
[323415596,1713973858816,-500.0,0.00017534,2]
[323415598,1713973858825,-500.0,0.00017534,2]
[323415600,1713973858835,-629.51,0.00017534,2]
[323415602,1713973858846,-500.0,0.00017534,2]
[323415605,1713973858855,-500.0,0.00017534,2]
[323415607,1713973858865,-500.0,0.00017534,2]
[323415609,1713973858874,-15898.31,0.00017534,2]
[323415610,1713973858886,-545.29,0.00017534,2]
[323415613,1713973858896,-500.0,0.00017534,2]
[323415614,1713973858905,-500.0,0.00017534,2]
[323415616,1713973858915,-1298.62,0.00017534,2]
[323415618,1713973858924,-602.15,0.00017534,2]
[323415621,1713973858934,-500.0,0.00017534,2]
[323415623,1713973858945,-500.0,0.00017534,2]
[323415638,1713973859084,-1307.55,0.00017534,2]
[323415640,1713973859097,-1533.51,0.00017534,2]
[323415642,1713973859106,-1480.74,0.00017534,2]
[323415643,1713973859115,-1355.25,0.00017534,2]
[323415645,1713973859127,-641.71,0.00017534,2]
[323415647,1713973859138,-2155.08,0.00017534,2]
[323415649,1713973859148,-292.61961312,0.00017534,2]
[323415651,1713973859158,-1175.27,0.00017534,2]
[323415653,1713973859169,-500.0,0.00017534,2]
[323415655,1713973859180,-1675.37,0.00017534,2]
[323415658,1713973859191,-500.0,0.00017534,2]
[323415659,1713973859201,-500.0,0.00017534,2]
[323415661,1713973859212,-500.0,0.00017534,2]
[323415663,1713973859222,-500.0,0.00017534,2]
[323415665,1713973859230,-500.0,0.00017534,2]
[323415667,1713973859240,-500.0,0.00017534,2]
[323415669,1713973859248,-1788.24,0.00017534,2]
[323415671,1713973859258,-1123.22,0.00017534,2]
[323415673,1713973859267,-2426.9,0.00017534,2]
[323415675,1713973859275,-500.0,0.00017534,2]
[323415677,1713973859284,-500.0,0.00017534,2]
[323415679,1713973859294,-7241.22,0.00017534,2]
[323415681,1713973859303,-756.6,0.00017534,2]
[323415683,1713973859313,-329.02088288,0.00017534,2]
[323415685,1713973859322,-529.0,0.00017534,2]
[323415687,1713973859331,-971.73,0.00017534,2]
[323415689,1713973859340,-720.48,0.00017534,2]
[323415691,1713973859350,-749.1,0.00017534,2]
[323415693,1713973859359,-500.0,0.00017534,2]
[323415695,1713973859369,-3467.77,0.00017534,2]
[323415697,1713973859378,-1047.76,0.00017534,2]
[323415699,1713973859389,-691.77,0.00017534,2]
[323415701,1713973859399,-500.0,0.00017534,2]
[323415703,1713973859408,-500.0,0.00017534,2]
[323415705,1713973859417,-5159.31,0.00017534,2]